[Event "44th Chess Olympiad Open 2022"]
[Site "Chennai"]
[Date "2022.08.05"]
[Round "7.40"]
[White "Mansour, Sameer"]
[Black "Rohl Montes, Juan Armando"]
[Result "0-1"]
[ECO "A21"]
[WhiteElo "2275"]
[BlackElo "2382"]
[Annotator "TA"]
[PlyCount "102"]
[EventDate "2022.07.29"]
[EventType "team-tourn"]
[EventCountry "IND"]
[SourceTitle "playchess.com"]
[Source "ChessBase"]
[SourceQuality "1"]
[WhiteTeam "Jordan"]
[BlackTeam "Venezuela"]
[WhiteTeamCountry "JOR"]
[BlackTeamCountry "VEN"]
[TimeControl "40/5400+30:1800+30"]

{[%evp 12,102,6,2,24,-40,-43,-46,-26,-36,-39,-42,-31,-34,-19,-22,-33,-41,-34,-53,-16,-14,-15,-18,-15,-19,-8,-15,-18,-24,-16,-8,0,-56,-36,-71,-87,-83,-57,-55,-21,-59,-55,-93,-91,-88,-90,-83,-89,-82,-85,-158,-147,-169,-158,-148,-133,-256,-219,-290,-322,-342,-351,-343,-309,-309,-314,-335,-320,-461,-422,-591,-566,-580,-566,-566,-550,-543,-531,-843,-833,-758,-733,-5708,-5161,-5775,-5714,-5518,-5122,-1935,-1704,-976,-818]} 1. c4 {[%emt 0:00:16]} e5 {[%emt 0:01:07]} 2. Nc3 {[%emt 0:00:20]} d6 {[%emt 0:00:48]} 3. Nf3 {[%emt 0:01:06]} f5 {[%emt 0:01:57]} 4. d4 {[%emt 0:02:15]} e4 {[%emt 0:00:36]} 5. Nd2 {[%emt 0:00:12]} Nf6 {[%emt 0:04:20]} 6. e3 {[%emt 0:00:52]} c6 {[%emt 0:07:36]} 7. Be2 {[%emt 0:12:18] is the legacy move (7.d5).} g6 {[%emt 0:05:40] [#] A21: English Opening: 1...e5 2 Nc3.} 8. a4 $146 {[%emt 0:06:07]} (8. b4 $11) ({Predecessor:} 8. O-O Bh6 9. b4 O-O 10. b5 c5 11. Nb3 b6 12. a4 Be6 13. f4 Nbd7 14. d5 Bf7 15. Bb2 g5 16. Qe1 g4 {½-½ (16) Martirosyan,H (2344)-Areshchenko,A (2656) Yerevan 2015}) 8... a5 $15 {[%emt 0:01:54]} 9. b3 {[%emt 0:02:24]} Bg7 {[%emt 0:07:40] Black is slightly better.} 10. Ba3 {[%emt 0:10:29]} Na6 {[%emt 0:01:40]} 11. O-O {[%emt 0:02:39]} O-O {[%emt 0:00:26]} 12. Na2 {[%emt 0:07:58]} Re8 {[%emt 0:15:34]} 13. b4 {[%emt 0:02:56]} axb4 {[%emt 0:00:22]} 14. Nxb4 {[%emt 0:00:03]} Nc7 {[%emt 0:01:21]} 15. Qb3 {[%emt 0:04:54]} Kh8 {[%emt 0:06:43]} 16. d5 {[%emt 0:04:16]} c5 {[%emt 0:00:00]} 17. Na2 {[%emt 0:00:10][%cal Bb4a2,Ba2c3,Bc3b5][%mdl 32]} Nd7 {[%emt 0:00:00]} 18. Nc3 {[%emt 0:00:50]} Ne5 {[%emt 0:00:00]} 19. Bb2 {[%emt 0:01:23]} Na6 {[%emt 0:05:55]} 20. Nb5 {[%emt 0:01:57]} Qe7 {[%emt 0:00:37]} 21. f3 {[%emt 0:06:23]} exf3 {[%emt 0:01:21]} 22. Bxf3 {[%emt 0:05:03]} ({White should play} 22. Nxf3 $11 Bd7 23. Nxe5 Bxe5 24. Ra3) 22... Bd7 {[%emt 0:00:29]} 23. Rae1 {[%emt 0:03:42]} Nb4 {[%emt 0:04:42]} 24. Be2 {[%emt 0:03:45] Inhibits Ned3.} Rf8 {[%emt 0:03:50]} 25. Bc3 {[%emt 0:00:59]} Na6 {[%emt 0:05:29]} 26. Qb2 {[%emt 0:01:54]} Kg8 {[%emt 0:01:36]} 27. Nf3 {[%emt 0:03:11] Black converts the advantage convincingly.} Bxb5 {[%emt 0:03:04]} 28. cxb5 {[%emt 0:03:52]} Nxf3+ {[%emt 0:00:23]} 29. Bxf3 {[%emt 0:02:27] [#] A strong pair of Bishops.} Nb4 {[%emt 0:00:32][%cal Ba6b4,Bb4c2,Bc2d4][%mdl 32] White must now prevent ...Nd3.} 30. Bxg7 {[%emt 0:01:16]} Qxg7 {[%emt 0:00:41]} 31. Qxg7+ {[%emt 0:01:01]} (31. Qb3 $142) 31... Kxg7 $17 {[%emt 0:00:03]} 32. e4 {[%emt 0:03:59] [#]} Nc2 $1 {[%emt 0:04:54]} (32... Rxa4 33. exf5 gxf5 34. Re7+ Rf7 35. Re6 $15) 33. Rc1 {[%emt 0:01:41]} Nd4 {[%emt 0:03:49] Threatens to win with ...fxe4. Black is more active.} ({Don't do} 33... Rxa4 34. Bd1 (34. Rxc2 fxe4 35. Bd1 Rxf1+ 36. Kxf1 Ra1 $14) 34... fxe4 35. Rxf8 (35. Rxc2 Rxf1+ 36. Kxf1 Rb4 $14) 35... Kxf8 36. Bxc2 $14) 34. Rfe1 {[%emt 0:02:41]} (34. exf5 $17 Rxf5 35. Rce1) 34... fxe4 {[%emt 0:00:34]} 35. Rxe4 {[%emt 0:00:14]} Rxa4 {[%emt 0:00:05]} ({Weaker is} 35... Nxf3+ 36. gxf3 Rxf3 37. Ra1 $17) 36. Re7+ {[%emt 0:00:55]} Rf7 {[%emt 0:00:07]} 37. Rce1 {[%emt 0:01:03]} Nxf3+ {[%emt 0:00:35]} 38. gxf3 $19 {[%emt 0:00:03][%mdl 4096] Endgame KRR-KRR} Rd4 {[%emt 0:00:02]} 39. b6 {[%emt 0:00:51]} Rb4 {[%emt 0:00:52]} ({But not} 39... Rxd5 $2 40. Rc7 $19) 40. R1e6 {[%emt 0:00:56]} (40. R7e6 {was worth a try.} Rxb6 41. Kf2) 40... Rxb6 {[%emt 0:00:12] Black is clearly winning.} 41. Rxf7+ {[%emt 0:30:21]} (41. Re8 $142) 41... Kxf7 {[%emt 0:30:05] KR-KR} 42. Kf2 {[%emt 0:00:08]} Ra6 {[%emt 0:00:06]} 43. Ke3 {[%emt 0:00:19]} b5 {[%emt 0:00:05][%cal Bb7b5,Bb5b4,Bb4b3,Bb3b2][%mdl 32]} 44. Kd3 {[%emt 0:00:00]} b4 {[%emt 0:00:00]} 45. Kc4 {[%emt 0:00:00]} Rb6 {[%emt 0:00:00]} 46. Kb3 {[%emt 0:00:00]} c4+ {[%emt 0:00:00]} 47. Kxc4 {[%emt 0:00:00]} b3 {[%emt 0:00:10] ( -> ...b2)} 48. Re1 {[%emt 0:00:00]} b2 {[%emt 0:00:00]} 49. Rb1 {[%emt 0:00:00]} Kf6 {[%emt 0:00:00] aiming for ...Ke5.} 50. Kc3 {[%emt 0:00:00]} Kf5 {[%emt 0:00:00] ...Kf4 is the strong threat.} 51. Kc2 {[%emt 0:00:00]} Ke5 {[%emt 0:00:39] Weighted Error Value: White=0.51/Black=0.13 (very precise)} 0-1

[Event "44th Chess Olympiad Open 2022"]
[Site "Chennai"]
[Date "2022.08.05"]
[Round "7.40"]
[White "Castro Silva, Moises Antonio"]
[Black "Boshra, Alshaeby"]
[Result "1-0"]
[ECO "B33"]
[WhiteElo "2237"]
[BlackElo "1854"]
[Annotator "NA RC"]
[PlyCount "89"]
[EventDate "2022.07.29"]
[EventType "team-tourn"]
[EventCountry "IND"]
[SourceTitle "playchess.com"]
[Source "ChessBase"]
[SourceQuality "1"]
[WhiteTeam "Venezuela"]
[BlackTeam "Jordan"]
[WhiteTeamCountry "VEN"]
[BlackTeamCountry "JOR"]
[TimeControl "40/5400+30:1800+30"]

1. e4 {[%emt 0:00:03]} c5 {[%emt 0:00:21]} 2. Nf3 {[%emt 0:00:07]} Nc6 {[%emt 0:00:08]} 3. d4 {[%emt 0:00:08]} cxd4 {[%emt 0:00:04]} 4. Nxd4 {[%emt 0:00:05]} Nf6 {[%emt 0:00:09]} 5. Nc3 {[%emt 0:00:06]} e5 {[%emt 0:00:09]} 6. Ndb5 {[%emt 0:00:06]} d6 {[%emt 0:00:07]} 7. Bg5 {[%emt 0:00:10]} a6 {[%emt 0:00:08]} 8. Na3 {[%emt 0:00:11]} b5 {[%emt 0:00:13]} 9. Nd5 {[%emt 0:00:52]} Be7 {[%emt 0:00:07]} 10. Bxf6 {[%emt 0:00:05]} Bxf6 {[%emt 0:00:05]} 11. c3 {[%emt 0:00:07]} Bg5 {[%emt 0:01:49]} 12. Nc2 {[%emt 0:00:12]} Rb8 {[%emt 0:00:23]} 13. a4 {[%emt 0:05:40]} bxa4 {[%emt 0:00:05]} 14. Ncb4 {[%emt 0:00:04]} Nxb4 {[%emt 0:08:57]} 15. Nxb4 {[%emt 0:00:14]} Bb7 {[%emt 0:08:58]} 16. Qxa4+ {[%emt 0:08:09]} Qd7 {[%emt 0:12:18]} 17. f3 {[%emt 0:11:59]} Qxa4 {[%emt 0:23:59]} 18. Rxa4 {[%emt 0:00:13]} Bc1 {[%emt 0:00:09]} 19. Ra2 {[%emt 0:00:30]} a5 {[%emt 0:00:13]} 20. Nd3 {[%emt 0:00:10]} Bg5 {[%emt 0:00:45]} 21. Rxa5 {[%emt 0:00:13]} f5 {[%emt 0:05:46]} 22. exf5 {[%emt 0:19:37]} O-O {[%emt 0:01:02]} 23. Nb4 {[%emt 0:02:59]} Rfc8 {[%emt 0:25:03]} 24. Be2 {[%emt 0:25:42]} Bc1 {[%emt 0:03:02]} 25. Ra2 {[%emt 0:04:19]} Be3 {[%emt 0:03:12]} 26. Ba6 {[%emt 0:02:50]} Bxa6 {[%emt 0:02:48]} 27. Nxa6 {[%emt 0:00:18]} Rb3 {[%emt 0:02:07]} 28. Ke2 {[%emt 0:00:26]} Bb6 {[%emt 0:00:43]} 29. Rd1 {[%emt 0:02:06]} Rd8 {[%emt 0:01:08]} 30. Nb4 {[%emt 0:01:06]} Bc5 {[%emt 0:00:13]} 31. Kd3 {[%emt 0:00:45]} Bxb4 {[%emt 0:00:55]} 32. Kc2 {[%emt 0:00:09]} Rxc3+ {[%emt 0:00:21]} 33. bxc3 {[%emt 0:00:06]} Bc5 {[%emt 0:00:07]} 34. Rda1 {[%emt 0:07:42]} Kf7 {[%emt 0:00:32]} 35. Ra8 {[%emt 0:00:13]} Rd7 {[%emt 0:00:05]} 36. Rh8 {[%emt 0:00:12]} Rc7 {[%emt 0:01:35]} 37. Kd3 {[%emt 0:00:29]} h6 {[%emt 0:00:35]} 38. Raa8 {[%emt 0:00:47]} Kf6 {[%emt 0:00:30]} 39. Raf8+ {[%emt 0:05:34]} Kg5 {[%emt 0:00:04]} 40. g3 {[%emt 0:00:50]} d5 {[%emt 0:00:43]} 41. h4+ {[%emt 0:30:15]} Kh5 {[%emt 0:30:34]} 42. Rc8 {[%emt 0:01:44]} Rxc8 {[%emt 0:00:00]} 43. Rxc8 {[%emt 0:00:00]} Bf2 {[%emt 0:00:00]} 44. g4+ {[%emt 0:00:00]} Kxh4 {[%emt 0:00:00]} 45. Rg8 {[%emt 0:00:00]} 1-0

[Event "44th Chess Olympiad Open 2022"]
[Site "Chennai"]
[Date "2022.08.05"]
[Round "7.40"]
[White "Aboudi, Marwan"]
[Black "Castro Torres, Jose Luis"]
[Result "0-1"]
[ECO "E60"]
[WhiteElo "2144"]
[BlackElo "2326"]
[Annotator "ChessBase"]
[PlyCount "64"]
[EventDate "2022.07.29"]
[EventType "team-tourn"]
[EventCountry "IND"]
[SourceTitle "playchess.com"]
[Source "ChessBase"]
[SourceQuality "1"]
[WhiteTeam "Jordan"]
[BlackTeam "Venezuela"]
[WhiteTeamCountry "JOR"]
[BlackTeamCountry "VEN"]
[TimeControl "40/5400+30:1800+30"]

1. d4 {[%emt 0:00:03]} Nf6 {[%emt 0:00:03]} 2. Nf3 {[%emt 0:00:08]} g6 {[%emt 0:00:08]} 3. g3 {[%emt 0:00:10]} Bg7 {[%emt 0:00:03]} 4. Bg2 {[%emt 0:00:19]} O-O {[%emt 0:00:10]} 5. O-O {[%emt 0:00:10]} d6 {[%emt 0:00:03]} 6. c4 {[%emt 0:00:18]} Nc6 {[%emt 0:01:04]} 7. d5 {[%emt 0:00:31]} Na5 {[%emt 0:00:35]} 8. Na3 {[%emt 0:00:20]} c5 {[%emt 0:01:26]} 9. Re1 {[%emt 0:00:43]} a6 {[%emt 0:06:12]} 10. e4 {[%emt 0:00:38]} b5 {[%emt 0:04:19]} 11. cxb5 {[%emt 0:06:38]} axb5 {[%emt 0:11:03]} 12. Nxb5 {[%emt 0:00:26]} Qb6 {[%emt 0:00:04]} 13. Na3 {[%emt 0:02:10]} Ba6 {[%emt 0:19:14]} 14. Bf1 {[%emt 0:11:39]} Bxf1 {[%emt 0:11:37]} 15. Kxf1 {[%emt 0:00:11]} Ng4 {[%emt 0:03:12]} 16. h3 {[%emt 0:12:59]} Bxb2 {[%emt 0:12:14]} 17. Bxb2 {[%emt 0:08:00]} Qxb2 {[%emt 0:01:43]} 18. hxg4 {[%emt 0:03:37]} Qxa3 {[%emt 0:00:03]} 19. Re3 {[%emt 0:06:54]} Qb2 {[%emt 0:01:26]} 20. Rb1 {[%emt 0:06:51]} Qxa2 {[%emt 0:08:41]} 21. Ra1 {[%emt 0:04:33]} Nc4 {[%emt 0:01:09]} 22. Rxa2 {[%emt 0:00:42]} Nxe3+ {[%emt 0:00:02]} 23. fxe3 {[%emt 0:00:13]} Rxa2 {[%emt 0:00:04]} 24. Qb3 {[%emt 0:08:18]} Rfa8 {[%emt 0:00:51]} 25. g5 {[%emt 0:00:33]} R8a3 {[%emt 0:02:48]} 26. Qb7 {[%emt 0:08:10]} Rxe3 {[%emt 0:00:42]} 27. Ne5 {[%emt 0:04:22]} Rc3 {[%emt 0:07:30]} 28. Qb1 {[%emt 0:03:19]} Rcc2 {[%emt 0:07:08]} 29. Nc6 {[%emt 0:08:17]} Rf2+ {[%emt 0:00:44]} 30. Kg1 {[%emt 0:00:17]} Rg2+ {[%emt 0:00:06]} 31. Kh1 {[%emt 0:00:17]} Rh2+ {[%emt 0:00:10]} 32. Kg1 {[%emt 0:00:05]} Rag2+ {[%emt 0:00:07]} 0-1

[Event "44th Chess Olympiad Open 2022"]
[Site "Chennai"]
[Date "2022.08.05"]
[Round "7.41"]
[White "Bwalya, Gillan"]
[Black "Kulpruethanon, Thanadon"]
[Result "1-0"]
[ECO "D36"]
[WhiteElo "2396"]
[BlackElo "2294"]
[Annotator "ChessBase"]
[PlyCount "83"]
[EventDate "2022.07.29"]
[EventType "team-tourn"]
[EventCountry "IND"]
[SourceTitle "playchess.com"]
[Source "ChessBase"]
[SourceQuality "1"]
[WhiteTeam "Zambia"]
[BlackTeam "Thailand"]
[WhiteTeamCountry "ZAM"]
[BlackTeamCountry "THA"]
[TimeControl "40/5400+30:1800+30"]

1. d4 {[%emt 0:00:27]} Nf6 {[%emt 0:00:12]} 2. c4 {[%emt 0:00:46]} e6 {[%emt 0:00:08]} 3. Nc3 {[%emt 0:00:20]} d5 {[%emt 0:00:11]} 4. cxd5 {[%emt 0:00:13]} exd5 {[%emt 0:00:10]} 5. Bg5 {[%emt 0:00:19]} c6 {[%emt 0:00:31]} 6. Qc2 {[%emt 0:00:48]} Bd6 {[%emt 0:02:42]} 7. e3 {[%emt 0:01:16]} O-O {[%emt 0:00:20]} 8. Bd3 {[%emt 0:00:11]} h6 {[%emt 0:00:15]} 9. Bh4 {[%emt 0:00:12]} Re8 {[%emt 0:00:17]} 10. Nge2 {[%emt 0:00:26]} a5 {[%emt 0:00:41]} 11. h3 {[%emt 0:01:05]} Na6 {[%emt 0:00:28]} 12. a3 {[%emt 0:00:54]} Nc7 {[%emt 0:00:13]} 13. O-O {[%emt 0:00:41]} Ne6 {[%emt 0:11:07]} 14. f3 {[%emt 0:17:02]} Be7 {[%emt 0:11:10]} 15. Rad1 {[%emt 0:07:06]} b5 {[%emt 0:05:41]} 16. Bf2 {[%emt 0:01:55]} b4 {[%emt 0:03:32]} 17. axb4 {[%emt 0:05:34]} axb4 {[%emt 0:00:09]} 18. Na4 {[%emt 0:00:16]} Qa5 {[%emt 0:12:52]} 19. Ra1 {[%emt 0:01:06]} Ba6 {[%emt 0:02:18]} 20. Bxa6 {[%emt 0:02:19]} Qxa6 {[%emt 0:00:58]} 21. b3 {[%emt 0:02:11]} Qb5 {[%emt 0:01:27]} 22. e4 {[%emt 0:01:24]} dxe4 {[%emt 0:03:45]} 23. fxe4 {[%emt 0:00:10]} Bf8 {[%emt 0:01:48]} 24. Ng3 {[%emt 0:01:14]} Rad8 {[%emt 0:05:55]} 25. Rad1 {[%emt 0:02:12]} Rd7 {[%emt 0:09:58]} 26. Be3 {[%emt 0:01:20]} Red8 {[%emt 0:06:20]} 27. Rf5 {[%emt 0:19:00]} Qb8 {[%emt 0:00:13]} 28. Ne2 {[%emt 0:01:47]} Qc7 {[%emt 0:13:20]} 29. Rdf1 {[%emt 0:00:56]} Ne8 {[%emt 0:00:43]} 30. Qb1 {[%emt 0:11:53]} Nd6 {[%emt 0:00:16]} 31. R5f2 {[%emt 0:00:42]} Nc8 {[%emt 0:06:26]} 32. Nb2 {[%emt 0:01:16]} Nb6 {[%emt 0:01:15]} 33. Qc2 {[%emt 0:02:30]} Qb7 {[%emt 0:00:54]} 34. Nd3 {[%emt 0:00:25]} f6 {[%emt 0:00:33]} 35. Ndf4 {[%emt 0:02:30]} Nxf4 {[%emt 0:00:12]} 36. Nxf4 {[%emt 0:00:40]} Re8 {[%emt 0:00:12]} 37. e5 {[%emt 0:01:05]} Nd5 {[%emt 0:00:13]} 38. Nxd5 {[%emt 0:01:03]} Rxd5 {[%emt 0:00:50]} 39. Bxh6 {[%emt 0:00:25]} fxe5 {[%emt 0:01:03]} 40. Qg6 {[%emt 0:00:31]} Red8 {[%emt 0:00:41]} 41. Qe6+ {[%emt 0:31:10]} Kh7 {[%emt 0:01:14]} 42. Rxf8 {[%emt 0:00:00]} 1-0

[Event "44th Chess Olympiad Open 2022"]
[Site "Chennai"]
[Date "2022.08.05"]
[Round "7.41"]
[White "Phiri, Richmond"]
[Black "Jingjang, Shin"]
[Result "1-0"]
[ECO "D15"]
[WhiteElo "2293"]
[BlackElo "1956"]
[Annotator "NA RC"]
[PlyCount "57"]
[EventDate "2022.07.29"]
[EventType "team-tourn"]
[EventCountry "IND"]
[SourceTitle "playchess.com"]
[Source "ChessBase"]
[SourceQuality "1"]
[WhiteTeam "Zambia"]
[BlackTeam "Thailand"]
[WhiteTeamCountry "ZAM"]
[BlackTeamCountry "THA"]
[TimeControl "40/5400+30:1800+30"]

1. d4 {[%emt 0:00:05]} d5 {[%emt 0:00:17]} 2. c4 {[%emt 0:00:10]} c6 {[%emt 0:00:00]} 3. Nc3 {[%emt 0:00:10]} Nf6 {[%emt 0:00:04]} 4. Nf3 {[%emt 0:00:09]} a6 {[%emt 0:00:14]} 5. a4 {[%emt 0:05:18]} e6 {[%emt 0:09:12]} 6. e3 {[%emt 0:02:03]} c5 {[%emt 0:07:22]} 7. Bd3 {[%emt 0:03:41]} Nc6 {[%emt 0:04:43]} 8. O-O {[%emt 0:00:09]} cxd4 {[%emt 0:00:05]} 9. exd4 {[%emt 0:00:04]} Be7 {[%emt 0:00:10]} 10. Bg5 {[%emt 0:00:17]} O-O {[%emt 0:00:41]} 11. Rc1 {[%emt 0:05:44]} Qd6 {[%emt 0:21:32]} 12. c5 {[%emt 0:03:42]} Qc7 {[%emt 0:03:55]} 13. Qb3 {[%emt 0:09:09]} Nxd4 {[%emt 0:09:57]} 14. Nxd4 {[%emt 0:01:00]} Ng4 {[%emt 0:00:12]} 15. Nf3 {[%emt 0:22:04]} Bxg5 {[%emt 0:05:13]} 16. Bxh7+ {[%emt 0:01:03]} Kh8 {[%emt 0:10:43]} 17. Rcd1 {[%emt 0:02:03]} Bf4 {[%emt 0:00:36]} 18. Bb1 {[%emt 0:07:46]} Nxh2 {[%emt 0:01:49]} 19. Nxh2 {[%emt 0:00:13]} Bxh2+ {[%emt 0:00:01]} 20. Kh1 {[%emt 0:00:05]} g6 {[%emt 0:06:09]} 21. g3 {[%emt 0:02:39]} Bxg3 {[%emt 0:02:55]} 22. fxg3 {[%emt 0:02:16]} Qxg3 {[%emt 0:00:24]} 23. Rd3 {[%emt 0:00:10]} Qh4+ {[%emt 0:04:36]} 24. Kg2 {[%emt 0:00:10]} Qg5+ {[%emt 0:01:01]} 25. Rg3 {[%emt 0:00:07]} Qe7 {[%emt 0:03:26]} 26. Qc2 {[%emt 0:00:19]} Kg8 {[%emt 0:02:16]} 27. Rh1 {[%emt 0:00:41]} e5 {[%emt 0:03:34]} 28. Qd2 {[%emt 0:00:44]} Qf6 {[%emt 0:00:50]} 29. Nxd5 {[%emt 0:00:23]} 1-0

[Event "44th Chess Olympiad Open 2022"]
[Site "Chennai"]
[Date "2022.08.05"]
[Round "7.41"]
[White "Laohawirapap, Prin"]
[Black "Mwali, Chitumbo"]
[Result "1-0"]
[ECO "C45"]
[WhiteElo "2230"]
[BlackElo "2320"]
[Annotator "RC"]
[PlyCount "111"]
[EventDate "2022.07.29"]
[EventType "team-tourn"]
[EventCountry "IND"]
[SourceTitle "playchess.com"]
[Source "ChessBase"]
[SourceQuality "1"]
[WhiteTeam "Thailand"]
[BlackTeam "Zambia"]
[WhiteTeamCountry "THA"]
[BlackTeamCountry "ZAM"]
[TimeControl "40/5400+30:1800+30"]

1. e4 {[%emt 0:00:03]} e5 {[%emt 0:00:27]} 2. Nf3 {[%emt 0:00:05]} Nc6 {[%emt 0:00:04]} 3. d4 {[%emt 0:00:06]} exd4 {[%emt 0:01:04]} 4. Nxd4 {[%emt 0:00:07]} Nf6 {[%emt 0:00:26]} 5. Nxc6 {[%emt 0:00:06]} bxc6 {[%emt 0:00:06]} 6. e5 {[%emt 0:00:06]} Qe7 {[%emt 0:00:24]} 7. Qe2 {[%emt 0:00:09]} Nd5 {[%emt 0:00:04]} 8. h4 {[%emt 0:00:04]} d6 {[%emt 0:05:15]} 9. c4 {[%emt 0:00:06]} Nb6 {[%emt 0:01:14]} 10. exd6 {[%emt 0:00:13]} Qxe2+ {[%emt 0:00:32]} 11. Bxe2 {[%emt 0:00:06]} cxd6 {[%emt 0:00:13]} 12. Bf3 {[%emt 0:00:23]} Bd7 {[%emt 0:00:54]} 13. b3 {[%emt 0:01:48]} Be7 {[%emt 0:04:02]} 14. Bb2 {[%emt 0:00:58]} O-O {[%emt 0:00:10]} 15. Nc3 {[%emt 0:14:13]} a5 {[%emt 0:03:49]} 16. Rd1 {[%emt 0:15:13]} a4 {[%emt 0:03:03]} 17. O-O {[%emt 0:01:45]} Rfb8 {[%emt 0:01:48]} 18. c5 {[%emt 0:10:39]} dxc5 {[%emt 0:07:33]} 19. Nxa4 {[%emt 0:07:47]} Be8 {[%emt 0:06:29]} 20. Be5 {[%emt 0:03:26]} Rb7 {[%emt 0:00:35]} 21. Nxb6 {[%emt 0:01:36]} Rxb6 {[%emt 0:00:02]} 22. Rfe1 {[%emt 0:00:55]} Bf8 {[%emt 0:17:25]} 23. Bc7 {[%emt 0:14:24]} Rb7 {[%emt 0:05:11]} 24. Bd6 {[%emt 0:01:38]} Rba7 {[%emt 0:08:25]} 25. a4 {[%emt 0:04:50]} Bxd6 {[%emt 0:08:11]} 26. Rxd6 {[%emt 0:02:01]} Rb8 {[%emt 0:00:31]} 27. Rc1 {[%emt 0:07:33]} Kf8 {[%emt 0:04:38]} 28. Rd3 {[%emt 0:04:18]} Ra5 {[%emt 0:03:58]} 29. Bd1 {[%emt 0:03:31]} Ke7 {[%emt 0:10:33]} 30. Re3+ {[%emt 0:00:11]} Kf6 {[%emt 0:03:21]} 31. Rec3 {[%emt 0:01:08]} Rd8 {[%emt 0:00:07]} 32. Be2 {[%emt 0:00:06]} Rd5 {[%emt 0:01:17]} 33. Bc4 {[%emt 0:00:43]} Re5 {[%emt 0:01:09]} 34. Rd1 {[%emt 0:00:38]} Ke7 {[%emt 0:01:22]} 35. f4 {[%emt 0:01:02]} Re4 {[%emt 0:00:24]} 36. g3 {[%emt 0:00:05]} Ra7 {[%emt 0:01:21]} 37. Bd3 {[%emt 0:00:47]} Rd4 {[%emt 0:02:15]} 38. Rxc5 {[%emt 0:00:30]} Kd6 {[%emt 0:00:28]} 39. Rc4 {[%emt 0:00:35]} c5 {[%emt 0:00:14]} 40. Bc2 {[%emt 0:01:40]} Rxd1+ {[%emt 0:00:13]} 41. Bxd1 {[%emt 0:30:06]} Bc6 {[%emt 0:30:43]} 42. Rc3 {[%emt 0:04:58]} Bd5 {[%emt 0:00:00]} 43. Kf2 {[%emt 0:00:00]} c4 {[%emt 0:00:00]} 44. bxc4 {[%emt 0:00:00]} Bc6 {[%emt 0:00:00]} 45. c5+ {[%emt 0:00:00]} Kd5 {[%emt 0:00:00]} 46. Ke3 {[%emt 0:00:00]} Bxa4 {[%emt 0:00:00]} 47. Bf3+ {[%emt 0:00:00]} Ke6 {[%emt 0:00:00]} 48. Ra3 {[%emt 0:00:00]} Kf6 {[%emt 0:00:00]} 49. Kf2 {[%emt 0:00:00]} Ra5 {[%emt 0:00:00]} 50. Bd1 {[%emt 0:00:00]} Rxc5 {[%emt 0:00:00]} 51. Rxa4 {[%emt 0:00:00]} g6 {[%emt 0:00:00]} 52. Ra6+ {[%emt 0:00:00]} Kg7 {[%emt 0:00:00]} 53. Ra7 {[%emt 0:00:00]} Rb5 {[%emt 0:00:00]} 54. Ba4 {[%emt 0:00:00]} Rb1 {[%emt 0:00:00]} 55. Be8 {[%emt 0:00:00]} Rb2+ {[%emt 0:00:00]} 56. Kf3 {[%emt 0:00:00]} 1-0

[Event "44th Chess Olympiad Open 2022"]
[Site "Chennai"]
[Date "2022.08.05"]
[Round "7.41"]
[White "Saeheng, Boonsueb"]
[Black "Lungu, Nase"]
[Result "1/2-1/2"]
[ECO "D20"]
[WhiteElo "2063"]
[BlackElo "2216"]
[Annotator "NA RC"]
[PlyCount "104"]
[EventDate "2022.07.29"]
[EventType "team-tourn"]
[EventCountry "IND"]
[SourceTitle "playchess.com"]
[Source "ChessBase"]
[SourceQuality "1"]
[WhiteTeam "Thailand"]
[BlackTeam "Zambia"]
[WhiteTeamCountry "THA"]
[BlackTeamCountry "ZAM"]
[TimeControl "40/5400+30:1800+30"]

1. d4 {[%emt 0:00:05]} d5 {[%emt 0:00:05]} 2. c4 {[%emt 0:00:14]} dxc4 {[%emt 0:00:05]} 3. e4 {[%emt 0:00:17]} c5 {[%emt 0:00:15]} 4. d5 {[%emt 0:01:31]} Nf6 {[%emt 0:00:03]} 5. Qa4+ {[%emt 0:10:43]} Bd7 {[%emt 0:04:50]} 6. Qxc4 {[%emt 0:00:13]} e6 {[%emt 0:01:16]} 7. Nc3 {[%emt 0:02:08]} a6 {[%emt 0:02:27]} 8. a4 {[%emt 0:01:29]} b5 {[%emt 0:00:28]} 9. Qe2 {[%emt 0:01:32]} b4 {[%emt 0:00:29]} 10. dxe6 {[%emt 0:02:04]} Bxe6 {[%emt 0:00:38]} 11. Nb1 {[%emt 0:00:56]} Nc6 {[%emt 0:00:11]} 12. Nf3 {[%emt 0:00:19]} c4 {[%emt 0:15:39]} 13. e5 {[%emt 0:15:17]} Nd5 {[%emt 0:00:24]} 14. Qxc4 {[%emt 0:01:41]} Rc8 {[%emt 0:00:43]} 15. Qe4 {[%emt 0:29:15]} Nxe5 {[%emt 0:06:36]} 16. Nbd2 {[%emt 0:00:35]} Nxf3+ {[%emt 0:02:00]} 17. Nxf3 {[%emt 0:00:20]} Qa5 {[%emt 0:09:45]} 18. Bd2 {[%emt 0:06:04]} Be7 {[%emt 0:00:27]} 19. Bd3 {[%emt 0:03:18]} Bf6 {[%emt 0:01:03]} 20. Nd4 {[%emt 0:02:11]} Bxd4 {[%emt 0:00:41]} 21. Qxd4 {[%emt 0:00:07]} O-O {[%emt 0:00:07]} 22. O-O {[%emt 0:12:51]} Rfd8 {[%emt 0:01:51]} 23. Qh4 {[%emt 0:01:34]} h6 {[%emt 0:05:22]} 24. Rfd1 {[%emt 0:03:20]} Rd7 {[%emt 0:07:13]} 25. Bxh6 {[%emt 0:01:47]} gxh6 {[%emt 0:00:26]} 26. Qxh6 {[%emt 0:00:08]} f6 {[%emt 0:00:09]} 27. Rac1 {[%emt 0:00:53]} Rxc1 {[%emt 0:11:42]} 28. Rxc1 {[%emt 0:00:03]} Qd8 {[%emt 0:00:23]} 29. Bxa6 {[%emt 0:01:05]} Rg7 {[%emt 0:04:53]} 30. g3 {[%emt 0:00:49]} Nc7 {[%emt 0:00:51]} 31. Bf1 {[%emt 0:00:37]} Qd4 {[%emt 0:00:07]} 32. Rc2 {[%emt 0:00:49]} Bd5 {[%emt 0:02:36]} 33. Re2 {[%emt 0:00:33]} Ne6 {[%emt 0:03:35]} 34. Qh5 {[%emt 0:00:17]} Nf8 {[%emt 0:02:49]} 35. Qf5 {[%emt 0:00:40]} Rg5 {[%emt 0:02:02]} 36. Qc2 {[%emt 0:00:32]} Re5 {[%emt 0:03:00]} 37. Rd2 {[%emt 0:00:28]} b3 {[%emt 0:00:59]} 38. Qd3 {[%emt 0:00:48]} Qxa4 {[%emt 0:02:28]} 39. h4 {[%emt 0:01:02]} Kg7 {[%emt 0:01:34]} 40. Kh2 {[%emt 0:00:36]} Qe4 {[%emt 0:04:11]} 41. Qxe4 {[%emt 0:02:49]} Bxe4 {[%emt 0:00:07]} 42. Rd4 {[%emt 0:00:19]} Ne6 {[%emt 0:04:16]} 43. Rb4 {[%emt 0:02:05]} Bd5 {[%emt 0:01:39]} 44. Bg2 {[%emt 0:00:56]} Nc5 {[%emt 0:04:04]} 45. Bxd5 {[%emt 0:03:07]} Rxd5 {[%emt 0:00:03]} 46. Rb5 {[%emt 0:00:19]} f5 {[%emt 0:00:51]} 47. Kg2 {[%emt 0:00:52]} Kf6 {[%emt 0:00:44]} 48. Kf3 {[%emt 0:00:35]} Re5 {[%emt 0:04:22]} 49. Rb6+ {[%emt 0:02:44]} Re6 {[%emt 0:00:43]} 50. Rb5 {[%emt 0:00:17]} Re5 {[%emt 0:04:16]} 51. Rb6+ {[%emt 0:00:12]} Re6 {[%emt 0:00:08]} 52. Rb5 {[%emt 0:00:09]} Re5 {[%emt 0:01:44]} 1/2-1/2